fUSD/lending_fUSD_20240224
["ID","MTS","AMOUNT","RATE_DAILY","PERIOD"]
[315094470,1708810298457,-545.97525685,0.00029041,2]
[315094471,1708810298466,-500.0,0.00029041,2]
[315094472,1708810298475,-500.0,0.00029041,2]
[315094473,1708810298485,-500.0,0.00029041,2]
[315094474,1708810298495,-500.0,0.00029041,2]
[315094475,1708810298505,-500.0,0.00029041,2]
[315094476,1708810298515,-548.36,0.00029041,2]
[315094477,1708810298524,-500.0,0.00029041,2]
[315094478,1708810298534,-500.0,0.00029041,2]
[315094479,1708810298543,-483.43772311,0.00029041,2]
[315094480,1708810298552,-500.0,0.00029041,2]
[315094481,1708810298562,-500.0,0.00029041,2]
[315094482,1708810298571,-500.0,0.00029041,2]
[315094483,1708810298580,-500.0,0.00029041,2]
[315094484,1708810298589,-614.13,0.00029041,2]
[315094485,1708810298599,-500.0,0.00029041,2]
[315094486,1708810298608,-500.0,0.00029041,2]
[315094487,1708810298617,-500.0,0.00029041,2]
[315094488,1708810298627,-500.0,0.00029041,2]
[315094489,1708810298636,-500.0,0.00029041,2]
[315094490,1708810298645,-500.0,0.00029041,2]
[315094491,1708810298655,-500.0,0.00029041,2]
[315094492,1708810298665,-585.45,0.00029041,2]
[315094493,1708810298674,-500.0,0.00029041,2]
[315094494,1708810298685,-500.0,0.00029041,2]
[315094495,1708810298695,-1917.18,0.00029041,2]
[315094496,1708810298704,-500.0,0.00029041,2]
[315094497,1708810298713,-500.0,0.00029041,2]
[315094498,1708810298724,-500.0,0.00029041,2]
[315094499,1708810298733,-546.70026326,0.00029041,2]
[315094500,1708810298742,-500.0,0.00029041,2]
[315094501,1708810298751,-717.49,0.00029041,2]
[315094502,1708810298761,-500.0,0.00029041,2]
[315094503,1708810298770,-500.0,0.00029041,2]
[315094504,1708810298780,-507.49,0.00029041,2]
[315094505,1708810298789,-637.40209577,0.00029041,2]
[315094506,1708810298798,-500.0,0.00029041,2]
[315094507,1708810298807,-500.0,0.00029041,2]
[315094508,1708810298817,-500.0,0.00029041,2]
[315094509,1708810298826,-557.38631411,0.00029041,2]
[315094510,1708810298836,-500.0,0.00029041,2]
[315094511,1708810298846,-533.35,0.00029041,2]
[315094512,1708810298856,-457.3,0.00029041,2]
[315094513,1708810298865,-500.0,0.00029041,2]
[315094514,1708810298874,-655.31,0.00029041,2]
[315094515,1708810298883,-500.0,0.00029041,2]
[315094516,1708810298893,-500.0,0.00029041,2]
[315094517,1708810298903,-500.0,0.00029041,2]
[315094518,1708810298912,-528.13,0.00029041,2]
[315094519,1708810298922,-500.0,0.00029041,2]
[315094520,1708810298931,-500.0,0.00029041,2]
[315094521,1708810298940,-500.0,0.00029041,2]
[315094522,1708810298949,-500.0,0.00029041,2]
[315094523,1708810298959,-500.0,0.00029041,2]
[315094524,1708810298968,-560.98041971,0.00029041,2]
[315094525,1708810298978,-500.0,0.00029041,2]
[315094526,1708810298987,-538.21929811,0.00029041,2]
[315094527,1708810298996,-500.0,0.00029041,2]
[315094528,1708810299006,-556.62,0.00029041,2]
[315094529,1708810299015,-500.0,0.00029041,2]
[315094530,1708810299025,-500.0,0.00029041,2]
[315094531,1708810299034,-173.18433025,0.00029041,2]
[315094532,1708810299043,-619.93690576,0.00029041,2]
[315094533,1708810299052,-500.0,0.00029041,2]
[315094534,1708810299062,-500.0,0.00029041,2]
[315094535,1708810299072,-500.0,0.00029041,2]
[315094536,1708810299081,-500.0,0.00029041,2]
[315094537,1708810299090,-500.0,0.00029041,2]
[315094538,1708810299099,-585.67,0.00029041,2]
[315094539,1708810299109,-500.0,0.00029041,2]
[315094540,1708810299178,-500.0,0.00029041,2]
[315094541,1708810299188,-500.0,0.00029041,2]
[315094542,1708810299197,-500.0,0.00029041,2]
[315094543,1708810299207,-500.0,0.00029041,2]
[315094544,1708810299220,-500.0,0.00029041,2]
[315094545,1708810299229,-500.0,0.00029041,2]
[315094546,1708810299239,-500.0,0.00029041,2]
[315094547,1708810299248,-500.0,0.00029041,2]
[315094548,1708810299259,-500.0,0.00029041,2]
[315094549,1708810299268,-500.0,0.00029041,2]
[315094550,1708810299277,-550.34816134,0.00029041,2]
[315094551,1708810299286,-500.0,0.00029041,2]
[315094552,1708810299298,-500.0,0.00029041,2]
[315094553,1708810299308,-500.0,0.00029041,2]
[315094554,1708810299317,-540.25,0.00029041,2]
[315094555,1708810299327,-500.0,0.00029041,2]
[315094556,1708810299336,-500.0,0.00029041,2]
[315094557,1708810299345,-548.19615562,0.00029041,2]
[315094558,1708810299355,-500.0,0.00029041,2]
[315094559,1708810299365,-500.0,0.00029041,2]
[315094560,1708810299374,-500.0,0.00029041,2]
[315094561,1708810299383,-500.0,0.00029041,2]
[315094562,1708810299392,-500.0,0.00029041,2]
[315094563,1708810299401,-500.0,0.00029041,2]
[315094564,1708810299410,-2052.74,0.00029041,2]
[315094565,1708810299420,-538.32,0.00029041,2]
[315094566,1708810299429,-500.0,0.00029041,2]
[315094567,1708810299439,-500.0,0.00029041,2]
[315094568,1708810299448,-500.0,0.00029041,2]
[315094569,1708810299457,-500.0,0.00029041,2]
[315094570,1708810299468,-500.0,0.00029041,2]
[315094571,1708810299478,-500.0,0.00029041,2]
[315094572,1708810299488,-500.0,0.00029041,2]
[315094573,1708810299497,-500.0,0.00029041,2]
[315094574,1708810299506,-500.0,0.00029041,2]
[315094575,1708810299515,-500.0,0.00029041,2]
[315094576,1708810299524,-500.0,0.00029041,2]
[315094577,1708810299534,-500.0,0.00029041,2]
[315094578,1708810299543,-500.0,0.00029041,2]
[315094579,1708810299553,-500.0,0.00029041,2]
[315094580,1708810299562,-500.0,0.00029041,2]
[315094581,1708810299572,-500.0,0.00029041,2]
[315094582,1708810299581,-500.0,0.00029041,2]
[315094583,1708810299591,-500.0,0.00029041,2]
[315094584,1708810299600,-500.0,0.00029041,2]
[315094585,1708810299609,-500.0,0.00029041,2]
[315094586,1708810299619,-500.0,0.00029041,2]
[315094587,1708810299628,-500.0,0.00029041,2]
[315094588,1708810299637,-625.41924658,0.00029041,2]
[315094589,1708810299646,-500.0,0.00029041,2]
[315094590,1708810299655,-500.0,0.00029041,2]
[315094591,1708810299665,-500.0,0.00029041,2]
[315094592,1708810299675,-500.0,0.00029041,2]
[315094593,1708810299685,-500.0,0.00029041,2]
[315094594,1708810299694,-500.0,0.00029041,2]
[315094595,1708810299703,-500.0,0.00029041,2]
[315094596,1708810299713,-500.0,0.00029041,2]
[315094597,1708810299722,-786.79,0.00029041,2]
[315094598,1708810299731,-500.0,0.00029041,2]
[315094599,1708810299739,-500.0,0.00029041,2]
[315094600,1708810299748,-500.0,0.00029041,2]
[315094601,1708810299758,-500.0,0.00029041,2]
[315094602,1708810299767,-500.0,0.00029041,2]
[315094603,1708810299777,-500.0,0.00029041,2]
[315094604,1708810299786,-500.0,0.00029041,2]
[315094605,1708810299796,-500.0,0.00029041,2]
[315094606,1708810299805,-500.0,0.00029041,2]
[315094607,1708810299815,-500.0,0.00029041,2]
[315094608,1708810299824,-627.35,0.00029041,2]
[315094609,1708810299833,-522.66119571,0.00029041,2]
[315094610,1708810299842,-578.82177885,0.00029041,2]
[315094611,1708810299851,-500.0,0.00029041,2]
[315094612,1708810299860,-500.0,0.00029041,2]
[315094613,1708810299869,-539.6,0.00029041,2]
[315094614,1708810299878,-500.0,0.00029041,2]
[315094615,1708810299887,-170.170821,0.00029041,2]
[315094616,1708810299896,-500.0,0.00029041,2]
[315094617,1708810299906,-500.0,0.00029041,2]
[315094618,1708810299916,-629.15346062,0.00029041,2]
[315094619,1708810299925,-500.0,0.00029041,2]
[315094620,1708810299934,-500.0,0.00029041,2]
[315094621,1708810299943,-500.0,0.00029041,2]
[315094622,1708810299953,-500.0,0.00029041,2]
[315094623,1708810299962,-632.00178013,0.00029041,2]
[315094624,1708810299971,-500.0,0.00029041,2]
[315094625,1708810299980,-500.0,0.00029041,2]
[315094626,1708810299989,-500.0,0.00029041,2]
[315094627,1708810299999,-500.0,0.00029041,2]
[315094628,1708810300008,-500.0,0.00029041,2]
[315094629,1708810300017,-500.0,0.00029041,2]
[315094630,1708810300025,-500.0,0.00029041,2]
[315094631,1708810300035,-500.0,0.00029041,2]
[315094632,1708810300044,-500.0,0.00029041,2]
[315094633,1708810300053,-500.0,0.00029041,2]
[315094634,1708810300062,-500.0,0.00029041,2]
[315094635,1708810300070,-500.0,0.00029041,2]
[315094636,1708810300080,-500.0,0.00029041,2]
[315094637,1708810300089,-500.0,0.00029041,2]
[315094638,1708810300097,-500.0,0.00029041,2]
[315094639,1708810300106,-500.0,0.00029041,2]
[315094640,1708810300115,-500.0,0.00029041,2]
[315094641,1708810300125,-500.0,0.00029041,2]
[315094642,1708810300134,-500.0,0.00029041,2]
[315094643,1708810300143,-500.0,0.00029041,2]
[315094644,1708810300152,-309.10240636,0.00029041,2]
[315094645,1708810300162,-500.0,0.00029041,2]
[315094646,1708810300171,-500.0,0.00029041,2]
[315094647,1708810300180,-521.65,0.00029041,2]
[315094648,1708810300189,-500.0,0.00029041,2]
[315094649,1708810300198,-534.03368961,0.00029041,2]
[315094650,1708810300207,-500.0,0.00029041,2]
[315094651,1708810300220,-500.0,0.00029041,2]
[315094652,1708810300230,-500.0,0.00029041,2]
[315094653,1708810300239,-500.0,0.00029041,2]
[315094654,1708810300248,-574.83,0.00029041,2]
[315094655,1708810300257,-500.0,0.00029041,2]
[315094656,1708810300267,-1865.83,0.00029041,2]
[315094657,1708810300276,-150.0,0.00029041,2]
[315094658,1708810300287,-719.34,0.00029041,2]
[315094659,1708810300296,-500.0,0.00029041,2]
[315094660,1708810300306,-500.0,0.00029041,2]
[315094661,1708810300318,-1620.46,0.00029041,2]
[315094662,1708810300328,-500.0,0.00029041,2]
[315094663,1708810300338,-500.0,0.00029041,2]
[315094664,1708810300348,-500.0,0.00029041,2]
[315094665,1708810300358,-589.1,0.00029041,2]
[315094666,1708810300369,-1249.24,0.00029041,2]
[315094667,1708810300380,-500.0,0.00029041,2]
[315094668,1708810300390,-4137.04,0.00029041,2]
[315094669,1708810300400,-500.0,0.00029041,2]
[315094670,1708810300410,-1988.0,0.00029041,2]
[315094671,1708810300420,-500.0,0.00029041,2]
[315094672,1708810300429,-325.98226232,0.00029041,2]
[315094673,1708810300439,-1254.4,0.00029041,2]
[315094674,1708810300449,-967.56,0.00029041,2]
[315094675,1708810300459,-391.27101314,0.00029041,2]
[315094676,1708810300468,-500.0,0.00029041,2]
[315094677,1708810300478,-965.13,0.00029041,2]
[315094678,1708810300488,-500.0,0.00029041,2]
[315094679,1708810300497,-3191.17,0.00029041,2]
[315094680,1708810300506,-404.43970906,0.00029041,2]
[315094681,1708810300516,-500.0,0.00029041,2]
[315094682,1708810300526,-1128.66,0.00029041,2]
[315094683,1708810300536,-909.75,0.00029041,2]
[315094684,1708810300545,-500.0,0.00029041,2]
[315094685,1708810300555,-552.39,0.00029041,2]
[315094686,1708810300565,-593.85,0.00029041,2]
[315094687,1708810300574,-1113.17,0.00029041,2]
[315094688,1708810300583,-500.0,0.00029041,2]
[315094689,1708810300592,-4045.8,0.00029041,2]
[315094690,1708810300602,-1077.57,0.00029041,2]
[315094691,1708810300611,-500.0,0.00029041,2]
[315094692,1708810300621,-500.0,0.00029041,2]
[315094693,1708810300630,-500.0,0.00029041,2]
[315094694,1708810300639,-500.0,0.00029041,2]
[315094695,1708810300649,-500.0,0.00029041,2]
[315094696,1708810300658,-3078.01,0.00029041,2]
[315094697,1708810300667,-3378.46,0.00029041,2]
[315094698,1708810300678,-4414.52,0.00029041,2]
[315094699,1708810300688,-500.0,0.00029041,2]
[315094700,1708810300697,-3626.76,0.00029041,2]
[315094701,1708810300706,-500.0,0.00029041,2]
[315094702,1708810300715,-3257.12,0.00029041,2]
[315094703,1708810300725,-500.0,0.00029041,2]
[315094704,1708810300734,-500.0,0.00029041,2]
[315094705,1708810300744,-539.18,0.00029041,2]
[315094706,1708810300753,-748.17,0.00029041,2]
[315094707,1708810300762,-5146.88,0.00029041,2]
[315094708,1708810300772,-500.0,0.00029041,2]
[315094709,1708810300781,-500.0,0.00029041,2]
[315094710,1708810300790,-1570.48,0.00029041,2]
[315094711,1708810300799,-500.0,0.00029041,2]
[315094712,1708810300808,-500.0,0.00029041,2]
[315094713,1708810300817,-500.0,0.00029041,2]
[315094714,1708810300827,-500.0,0.00029041,2]
[315094715,1708810300836,-500.0,0.00029041,2]
[315094716,1708810300845,-500.0,0.00029041,2]
[315094717,1708810300857,-741.74,0.00029041,2]
[315094718,1708810300867,-500.0,0.00029041,2]
[315094719,1708810300877,-500.0,0.00029041,2]
[315094720,1708810300886,-500.0,0.00029041,2]
[315094721,1708810300895,-500.0,0.00029041,2]
[315094722,1708810300904,-720.57,0.00029041,2]
[315094723,1708810300913,-3824.68,0.00029041,2]
[315094724,1708810300923,-500.0,0.00029041,2]
[315094725,1708810300932,-500.0,0.00029041,2]
[315094726,1708810300941,-862.0,0.00029041,2]
[315094727,1708810300950,-993.01,0.00029041,2]
[315094728,1708810300959,-500.0,0.00029041,2]
[315094729,1708810300968,-500.0,0.00029041,2]
[315094730,1708810300977,-500.0,0.00029041,2]
[315094731,1708810300986,-500.0,0.00029041,2]
[315094732,1708810300995,-962.36,0.00029041,2]
[315094733,1708810301005,-500.0,0.00029041,2]
[315094734,1708810301014,-500.0,0.00029041,2]
[315094735,1708810301023,-677.57,0.00029041,2]
[315094736,1708810301033,-500.0,0.00029041,2]
[315094737,1708810301043,-1493.01,0.00029041,2]
[315094738,1708810301052,-661.48,0.00029041,2]
[315094739,1708810301061,-1197.16,0.00029041,2]
[315094740,1708810301070,-500.0,0.00029041,2]
[315094741,1708810301079,-500.0,0.00029041,2]
[315094742,1708810301089,-500.0,0.00029041,2]
[315094743,1708810301098,-500.0,0.00029041,2]
[315094744,1708810301107,-643.15,0.00029041,2]
[315094745,1708810301117,-1266.86,0.00029041,2]
[315094746,1708810301126,-1193.59,0.00029041,2]
[315094747,1708810301136,-624.93,0.00029041,2]
[315094748,1708810301145,-500.0,0.00029041,2]
[315094749,1708810301155,-500.0,0.00029041,2]
[315094750,1708810301165,-610.59,0.00029041,2]
[315094751,1708810301175,-500.0,0.00029041,2]
[315094752,1708810301184,-539.08551464,0.00029041,2]
[315094753,1708810301194,-500.0,0.00029041,2]
[315094754,1708810301203,-650.57,0.00029041,2]
[315094755,1708810301214,-617.61,0.00029041,2]
[315094756,1708810301223,-785.98,0.00029041,2]
[315094757,1708810301233,-688.7,0.00029041,2]
[315094758,1708810301243,-500.0,0.00029041,2]
[315094759,1708810301253,-3270.7,0.00029041,2]
[315094760,1708810301263,-509.37,0.00029041,2]
[315094761,1708810301272,-500.0,0.00029041,2]
[315094762,1708810301282,-6318.14,0.00029041,2]
[315094763,1708810301293,-500.0,0.00029041,2]
[315094764,1708810301303,-1746.14,0.00029041,2]
[315094765,1708810301312,-500.0,0.00029041,2]
[315094766,1708810301322,-500.0,0.00029041,2]
[315094767,1708810301331,-500.0,0.00029041,2]
[315094768,1708810301340,-500.0,0.00029041,2]
[315094769,1708810301350,-500.0,0.00029041,2]
[315094770,1708810301360,-500.0,0.00029041,2]
[315094771,1708810301369,-500.0,0.00029041,2]
[315094772,1708810301379,-755.98,0.00029041,2]
[315094773,1708810301388,-562.19,0.00029041,2]
[315094774,1708810301397,-500.0,0.00029041,2]
[315094775,1708810301406,-898.07,0.00029041,2]
[315094776,1708810301416,-630.58,0.00029041,2]
[315094777,1708810301426,-500.0,0.00029041,2]
[315094778,1708810301435,-557.45,0.00029041,2]
[315094779,1708810301445,-637.87,0.00029041,2]
[315094780,1708810301454,-500.0,0.00029041,2]
[315094781,1708810301463,-668.5,0.00029041,2]
[315094782,1708810301473,-500.0,0.00029041,2]
[315094783,1708810301482,-500.0,0.00029041,2]
[315094784,1708810301491,-509.26,0.00029041,2]
[315094785,1708810301501,-1377.18,0.00029041,2]
[315094786,1708810301510,-669.18,0.00029041,2]
[315094787,1708810301520,-500.0,0.00029041,2]
[315094788,1708810301530,-1798.49,0.00029041,2]
[315094789,1708810301539,-1649.33,0.00029041,2]
[315094790,1708810301549,-574.79,0.00029041,2]
[315094791,1708810301558,-500.0,0.00029041,2]
[315094792,1708810301567,-500.0,0.00029041,2]
[315094793,1708810301577,-500.0,0.00029041,2]
[315094794,1708810301586,-667.98,0.00029041,2]
[315094795,1708810301596,-500.0,0.00029041,2]
[315094796,1708810301606,-500.0,0.00029041,2]
[315094797,1708810301615,-568.06,0.00029041,2]
[315094798,1708810301625,-500.0,0.00029041,2]
[315094799,1708810301634,-500.0,0.00029041,2]
[315094800,1708810301643,-1086.98,0.00029041,2]
[315094801,1708810301652,-1024.22,0.00029041,2]
[315094802,1708810301661,-1911.86,0.00029041,2]
[315094803,1708810301671,-754.1,0.00029041,2]
[315094804,1708810301681,-199.28306012,0.00029041,2]
[315094805,1708810301690,-500.0,0.00029041,2]
[315094806,1708810301700,-500.0,0.00029041,2]
[315094807,1708810301710,-500.0,0.00029041,2]
[315094808,1708810301719,-1211.44,0.00029041,2]
[315094809,1708810301728,-615.67432768,0.00029041,2]
[315094810,1708810301737,-500.0,0.00029041,2]
[315094811,1708810301747,-2683.79,0.00029041,2]
[315094812,1708810301756,-763.44,0.00029041,2]
[315094813,1708810301765,-761.74,0.00029041,2]
[315094814,1708810301774,-500.0,0.00029041,2]
[315094815,1708810301784,-500.0,0.00029041,2]
[315094816,1708810301793,-500.0,0.00029041,2]
[315094817,1708810301803,-500.0,0.00029041,2]
[315094818,1708810301812,-3791.77,0.00029041,2]
[315094819,1708810301821,-558.0,0.00029041,2]
[315094820,1708810301831,-500.0,0.00029041,2]
[315094821,1708810301844,-656.92,0.00029041,2]
[315094822,1708810301854,-500.0,0.00029041,2]
[315094823,1708810301863,-650.49,0.00029041,2]
[315094824,1708810301872,-10336.27,0.00029041,2]
[315094825,1708810301881,-1232.51,0.00029041,2]
[315094826,1708810301890,-759.92,0.00029041,2]
[315094827,1708810301899,-530.65,0.00029041,2]
[315094828,1708810301909,-500.0,0.00029041,2]
[315094829,1708810301919,-500.0,0.00029041,2]
[315094830,1708810301928,-1623.45,0.00029041,2]
[315094831,1708810301938,-869.76,0.00029041,2]
[315094832,1708810301947,-2066.73,0.00029041,2]
[315094833,1708810301957,-500.0,0.00029041,2]
[315094834,1708810301967,-500.0,0.00029041,2]
[315094835,1708810301976,-2785.74,0.00029041,2]
[315094836,1708810301986,-713.18,0.00029041,2]
[315094837,1708810301995,-571.94888657,0.00029041,2]
[315094838,1708810302005,-500.0,0.00029041,2]
[315094839,1708810302014,-1087.52,0.00029041,2]
[315094840,1708810302023,-514.16772746,0.00029041,2]
[315094841,1708810302033,-769.16,0.00029041,2]
[315094842,1708810302042,-794.25,0.00029041,2]
[315094843,1708810302052,-5728.28,0.00029041,2]
[315094844,1708810302062,-1094.48,0.00029041,2]
[315094845,1708810302071,-500.0,0.00029041,2]
[315094846,1708810302081,-950.08,0.00029041,2]
[315094847,1708810302090,-500.0,0.00029041,2]
[315094848,1708810302099,-1104.7,0.00029041,2]
[315094849,1708810302109,-4776.88,0.00029041,2]
[315094850,1708810302118,-500.0,0.00029041,2]
[315094851,1708810302127,-787.59,0.00029041,2]
[315094852,1708810302136,-1722.68,0.00029041,2]
[315094853,1708810302145,-1079.64,0.00029041,2]
[315094854,1708810302155,-500.0,0.00029041,2]
[315094855,1708810302165,-500.0,0.00029041,2]
[315094856,1708810302174,-500.0,0.00029041,2]
[315094857,1708810302183,-500.0,0.00029041,2]
[315094858,1708810302192,-500.0,0.00029041,2]
[315094859,1708810302202,-545.78,0.00029041,2]
[315094860,1708810302212,-500.0,0.00029041,2]
[315094861,1708810302223,-870.54,0.00029041,2]
[315094862,1708810302233,-1404.99,0.00029041,2]
[315094863,1708810302242,-500.0,0.00029041,2]
[315094864,1708810302252,-500.0,0.00029041,2]
[315094865,1708810302262,-500.0,0.00029041,2]
[315094866,1708810302271,-500.0,0.00029041,2]
[315094867,1708810302281,-540.96,0.00029041,2]
[315094868,1708810302292,-663.68,0.00029041,2]
[315094869,1708810302302,-518.41,0.00029041,2]
[315094870,1708810302311,-584.76,0.00029041,2]
[315094871,1708810302320,-500.0,0.00029041,2]
[315094872,1708810302330,-500.0,0.00029041,2]
[315094873,1708810302339,-1088.17,0.00029041,2]
[315094874,1708810302349,-500.0,0.00029041,2]
[315094875,1708810302359,-706.22,0.00029041,2]
[315094876,1708810302368,-703.51,0.00029041,2]
[315094877,1708810302377,-811.6,0.00029041,2]
[315094878,1708810302387,-653.11,0.00029041,2]
[315094879,1708810302397,-500.0,0.00029041,2]
[315094880,1708810302406,-1095.43,0.00029041,2]
[315094881,1708810302416,-500.0,0.00029041,2]
[315094882,1708810302425,-618.19,0.00029041,2]
[315094883,1708810302435,-2081.06,0.00029041,2]
[315094884,1708810302445,-1162.71,0.00029041,2]
[315094885,1708810302454,-561.15063141,0.00029041,2]
[315094886,1708810302463,-943.46,0.00029041,2]
[315094887,1708810302473,-1409.4,0.00029041,2]
[315094888,1708810302482,-500.0,0.00029041,2]
[315094889,1708810302491,-500.0,0.00029041,2]
[315094890,1708810302500,-500.0,0.00029041,2]
[315094891,1708810302509,-500.0,0.00029041,2]
[315094892,1708810302518,-632.23,0.00029041,2]
[315094893,1708810302527,-500.0,0.00029041,2]
[315094894,1708810302537,-500.0,0.00029041,2]
[315094895,1708810302546,-500.0,0.00029041,2]
[315094896,1708810302555,-397.32,0.00029068,2]
[315094897,1708810302566,-1608.63597381,0.00029073,2]
[315094898,1708810302575,-827.0,0.000291,2]
[315094899,1708810302584,-155.31944331,0.00029159,2]
[315094900,1708810302594,-359.38522653,0.00029159,16]
[315094901,1708810302603,-500.0,0.00029178,2]
[315094902,1708810302613,-1541.43165216,0.00029184,2]
[315094903,1708810302622,-666.0,0.000292,2]
[315094904,1708810302632,-231.0,0.00029281,2]
[315094905,1708810302642,-612.0,0.00029281,2]
[315094906,1708810302651,-151.0,0.0002929,7]
[315094907,1708810302662,-595.87,0.00029297,2]
[315094908,1708810302671,-153.78621196,0.00029311,4]
[315094909,1708810302682,-500.0,0.00029315,2]
[315094910,1708810302693,-500.0,0.00029315,2]
[315094911,1708810302703,-500.0,0.00029315,2]
[315094912,1708810302712,-500.0,0.00029315,2]
[315094913,1708810302722,-523.10844418,0.00029315,2]
[315094914,1708810302731,-500.0,0.00029315,2]
[315094915,1708810302740,-199.9586897,0.00029315,2]
[315094916,1708810302750,-500.0,0.00029315,2]
[315094917,1708810302759,-500.0,0.00029315,2]
[315094918,1708810302768,-500.0,0.00029315,2]
[315094919,1708810302777,-500.0,0.00029315,2]
[315094920,1708810302786,-500.0,0.00029315,2]
[315094921,1708810302795,-500.0,0.00029315,2]
[315094922,1708810302804,-500.0,0.00029315,2]
[315094923,1708810302814,-500.0,0.00029315,2]
[315094924,1708810302823,-521.26695253,0.00029315,2]
[315094925,1708810302832,-500.0,0.00029315,2]
[315094926,1708810302841,-500.0,0.00029315,2]
[315094927,1708810302850,-500.0,0.00029315,2]
[315094928,1708810302859,-500.0,0.00029315,2]
[315094929,1708810302868,-500.0,0.00029315,2]
[315094930,1708810302876,-500.0,0.00029315,2]
[315094931,1708810302885,-500.0,0.00029315,2]
[315094932,1708810302894,-545.83,0.00029315,2]
[315094933,1708810302903,-500.0,0.00029315,2]
[315094934,1708810302912,-500.0,0.00029315,2]
[315094935,1708810302922,-500.0,0.00029315,2]
[315094936,1708810302958,-500.0,0.00029315,2]
[315094937,1708810302967,-500.0,0.00029315,2]
[315094938,1708810302976,-500.0,0.00029315,2]
[315094939,1708810302986,-500.0,0.00029315,2]
[315094940,1708810302995,-500.0,0.00029315,2]
[315094941,1708810303004,-500.0,0.00029315,2]
[315094942,1708810303013,-500.0,0.00029315,2]
[315094943,1708810303022,-575.5926473,0.00029315,2]
[315094944,1708810303031,-500.0,0.00029315,2]
[315094945,1708810303040,-585.7735065,0.00029315,2]
[315094946,1708810303049,-500.0,0.00029315,2]
[315094947,1708810303058,-500.0,0.00029315,2]
[315094948,1708810303067,-500.0,0.00029315,2]
[315094949,1708810303076,-500.0,0.00029315,2]
[315094950,1708810303085,-494.84729864,0.00029315,2]
[315094951,1708810303095,-500.0,0.00029315,2]
[315094952,1708810303104,-500.0,0.00029315,2]
[315094953,1708810303113,-500.0,0.00029315,2]
[315094954,1708810303122,-595.95,0.00029315,2]
[315094955,1708810303131,-500.0,0.00029315,2]
[315094956,1708810303140,-500.0,0.00029315,2]
[315094957,1708810303149,-500.0,0.00029315,2]
[315094958,1708810303158,-500.0,0.00029315,2]
[315094959,1708810303168,-500.0,0.00029315,2]
[315094960,1708810303177,-533.74,0.00029315,2]
[315094961,1708810303186,-500.0,0.00029315,2]
[315094962,1708810303196,-500.0,0.00029315,2]
[315094963,1708810303313,-500.0,0.00029315,2]
[315094964,1708810303331,-500.0,0.00029315,2]
[315094965,1708810303340,-1377.86,0.00029315,2]
[315094966,1708810303350,-500.0,0.00029315,2]
[315094967,1708810303359,-500.0,0.00029315,2]
[315094968,1708810303369,-500.0,0.00029315,2]
[315094969,1708810303378,-500.0,0.00029315,2]